[Event "Titled Tuesday Blitz June 29 2021"]
[White "exoticprincess"]
[Black "Duhless"]
[WhiteElo "2886"]
[BlackElo "3079"]
[Result "1-0"]
[Round "11"]
[TimeControl "180+1"]
[Date "2021.06.29"]
[WhiteClock "0:01:33"]
[BlackClock "0:00:02"]

1. e4 {[%clk 0:03:00]}  e5 {[%clk 0:02:58]} 2. Nf3 {[%clk 0:03:00]}  Nc6 {[%clk 0:02:58]} 3. d4 {[%clk 0:03:00]}  exd4 {[%clk 0:02:58]} 4. Nxd4 {[%clk 0:03:01]}  Nf6 {[%clk 0:02:58]} 5. Nxc6 {[%clk 0:03:01]}  bxc6 {[%clk 0:02:58]} 6. Bd3 {[%clk 0:03:02]}  d5 {[%clk 0:02:57]} 7. exd5 {[%clk 0:03:03]}  cxd5 {[%clk 0:02:57]} 8. O-O {[%clk 0:03:04]}  Be7 {[%clk 0:02:56]} 9. Re1 {[%clk 0:03:04]}  O-O {[%clk 0:02:56]} 10. h3 {[%clk 0:03:05]}  c5 {[%clk 0:02:53]} 11. b3 {[%clk 0:03:05]}  a5 {[%clk 0:02:53]} 12. Nd2 {[%clk 0:03:03]}  a4 {[%clk 0:02:52]} 13. Nf3 {[%clk 0:03:03]}  Ne4 {[%clk 0:02:19]} 14. Bb2 {[%clk 0:02:54]}  a3 {[%clk 0:01:56]} 15. Be5 {[%clk 0:02:52]}  f5 {[%clk 0:01:56]} 16. c4 {[%clk 0:02:48]}  d4 {[%clk 0:01:56]} 17. Rxe4 {[%clk 0:02:45]}  fxe4 {[%clk 0:01:55]} 18. Bxe4 {[%clk 0:02:46]}  Bf5 {[%clk 0:01:52]} 19. Bd5+ {[%clk 0:02:44]}  Kh8 {[%clk 0:01:51]} 20. Bxa8 {[%clk 0:02:44]}  Qxa8 {[%clk 0:01:51]} 21. Qe2 {[%clk 0:02:35]}  Re8 {[%clk 0:01:00]} 22. Re1 {[%clk 0:02:32]}  Bf6 {[%clk 0:01:00]} 23. Qd2 {[%clk 0:02:24]}  Bxe5 {[%clk 0:00:59]} 24. Nxe5 {[%clk 0:02:23]}  Kg8 {[%clk 0:00:56]} 25. g4 {[%clk 0:02:12]}  Bg6 {[%clk 0:00:41]} 26. f4 {[%clk 0:02:08]}  Be4 {[%clk 0:00:36]} 27. Kh2 {[%clk 0:02:06]}  Bb7 {[%clk 0:00:34]} 28. Kg3 {[%clk 0:02:02]}  Qd8 {[%clk 0:00:31]} 29. Nd3 {[%clk 0:01:59]}  h5 {[%clk 0:00:08]} 30. Nxc5 {[%clk 0:01:51]}  Bc6 {[%clk 0:00:05]} 31. gxh5 {[%clk 0:01:43]}  Re7 {[%clk 0:00:02]} 32. Rxe7 {[%clk 0:01:41]}  Qxe7 {[%clk 0:00:03]} 33. Qxd4 {[%clk 0:01:41]}  Qe1+ {[%clk 0:00:03]} 34. Qf2 {[%clk 0:01:38]}  Qc3+ {[%clk 0:00:03]} 35. Kg4 {[%clk 0:01:37]}  Qb2 {[%clk 0:00:03]} 36. Nd3 {[%clk 0:01:36]}  Qb1 {[%clk 0:00:02]} 37. Ne5 {[%clk 0:01:35]}  Be4 {[%clk 0:00:02]} 38. Qd4 {[%clk 0:01:33]} 1-0


[Site "https://www.chess.com"]

[Event "Titled Tuesday Blitz June 29 2021"]
[White "harlem4brew"]
[Black "bazar-wokzal"]
[WhiteElo "2420"]
[BlackElo "2544"]
[Result "0-1"]
[Round "11"]
[TimeControl "180+1"]
[Date "2021.06.29"]
[WhiteClock "0:00:34"]
[BlackClock "0:00:16"]

1. e4 {[%clk 0:03:00]}  c5 {[%clk 0:02:59]} 2. Nf3 {[%clk 0:02:59]}  d6 {[%clk 0:02:59]} 3. d4 {[%clk 0:03:00]}  cxd4 {[%clk 0:03:00]} 4. Nxd4 {[%clk 0:03:01]}  Nf6 {[%clk 0:03:00]} 5. Nc3 {[%clk 0:03:01]}  g6 {[%clk 0:03:00]} 6. Bd3 {[%clk 0:03:00]}  Bg7 {[%clk 0:03:00]} 7. O-O {[%clk 0:03:01]}  O-O {[%clk 0:03:00]} 8. Kh1 {[%clk 0:03:00]}  Nc6 {[%clk 0:03:00]} 9. Nb3 {[%clk 0:02:56]}  Be6 {[%clk 0:03:00]} 10. f4 {[%clk 0:02:55]}  Nb4 {[%clk 0:02:54]} 11. Nd4 {[%clk 0:02:52]}  Nxd3 {[%clk 0:02:50]} 12. Nxe6 {[%clk 0:02:52]}  fxe6 {[%clk 0:02:50]} 13. Qxd3 {[%clk 0:02:52]}  Rc8 {[%clk 0:02:49]} 14. Be3 {[%clk 0:02:50]}  a6 {[%clk 0:02:48]} 15. Bd4 {[%clk 0:02:49]}  Qa5 {[%clk 0:02:38]} 16. a4 {[%clk 0:02:46]}  Nh5 {[%clk 0:02:30]} 17. Bxg7 {[%clk 0:02:42]}  Kxg7 {[%clk 0:02:29]} 18. Qd4+ {[%clk 0:02:42]}  Kg8 {[%clk 0:02:23]} 19. e5 {[%clk 0:02:27]}  Qc5 {[%clk 0:02:17]} 20. Qe4 {[%clk 0:02:18]}  d5 {[%clk 0:02:09]} 21. Qe2 {[%clk 0:02:03]}  Rxf4 {[%clk 0:02:04]} 22. Rxf4 {[%clk 0:02:00]}  Nxf4 {[%clk 0:02:04]} 23. Qg4 {[%clk 0:02:00]}  d4 {[%clk 0:01:19]} 24. Qxf4 {[%clk 0:01:33]}  dxc3 {[%clk 0:01:18]} 25. b4 {[%clk 0:01:31]}  Qc4 {[%clk 0:01:07]} 26. Qf3 {[%clk 0:01:28]}  Rf8 {[%clk 0:01:05]} 27. Qd1 {[%clk 0:01:25]}  Qxb4 {[%clk 0:00:56]} 28. Qd7 {[%clk 0:01:18]}  Rf2 {[%clk 0:00:31]} 29. Qxe6+ {[%clk 0:01:16]}  Kg7 {[%clk 0:00:31]} 30. h3 {[%clk 0:00:53]}  Kh6 {[%clk 0:00:19]} 31. Ra2 {[%clk 0:00:30]}  Qe4 {[%clk 0:00:17]} 32. Qg4 {[%clk 0:00:25]}  Qxg4 {[%clk 0:00:16]} 33. hxg4 {[%clk 0:00:26]}  Kg5 {[%clk 0:00:16]} 34. Kg1 {[%clk 0:00:25]}  Rd2 {[%clk 0:00:16]} 35. Kf1 {[%clk 0:00:23]}  Kxg4 {[%clk 0:00:16]} 36. a5 {[%clk 0:00:23]}  Kg3 {[%clk 0:00:16]} 37. Ra3 {[%clk 0:00:20]}  Rxc2 {[%clk 0:00:16]} 38. Ke1 {[%clk 0:00:19]}  Rc1+ {[%clk 0:00:16]} 39. Ke2 {[%clk 0:00:19]}  Kxg2 {[%clk 0:00:16]} 40. Kd3 {[%clk 0:00:19]}  h5 {[%clk 0:00:15]} 41. Rxc3 {[%clk 0:00:18]}  Rxc3+ {[%clk 0:00:15]} 42. Kxc3 {[%clk 0:00:19]}  h4 {[%clk 0:00:16]} 43. Kd4 {[%clk 0:00:19]}  h3 {[%clk 0:00:16]} 44. Kc5 {[%clk 0:00:20]}  h2 {[%clk 0:00:17]} 45. Kb6 {[%clk 0:00:21]}  h1=Q {[%clk 0:00:17]} 46. e6 {[%clk 0:00:21]}  Kg3 {[%clk 0:00:16]} 47. Ka7 {[%clk 0:00:22]}  Qe4 {[%clk 0:00:15]} 48. Kb8 {[%clk 0:00:23]}  Qxe6 {[%clk 0:00:15]} 49. Kc7 {[%clk 0:00:24]}  Qd5 {[%clk 0:00:15]} 50. Kb8 {[%clk 0:00:24]}  Qxa5 {[%clk 0:00:15]} 51. Ka7 {[%clk 0:00:25]}  Qb5 {[%clk 0:00:15]} 52. Ka8 {[%clk 0:00:25]}  a5 {[%clk 0:00:15]} 53. Kb8 {[%clk 0:00:25]}  a4 {[%clk 0:00:16]} 54. Kc8 {[%clk 0:00:26]}  a3 {[%clk 0:00:16]} 55. Kd8 {[%clk 0:00:27]}  a2 {[%clk 0:00:17]} 56. Kxe7 {[%clk 0:00:27]}  a1=Q {[%clk 0:00:17]} 57. Kf8 {[%clk 0:00:28]}  g5 {[%clk 0:00:16]} 58. Kg8 {[%clk 0:00:28]}  g4 {[%clk 0:00:17]} 59. Kh7 {[%clk 0:00:29]}  Kf3 {[%clk 0:00:18]} 60. Kg6 {[%clk 0:00:30]}  g3 {[%clk 0:00:18]} 61. Kf7 {[%clk 0:00:30]}  g2 {[%clk 0:00:18]} 62. Ke6 {[%clk 0:00:31]}  g1=Q {[%clk 0:00:18]} 63. Kd6 {[%clk 0:00:32]}  Qd3+ {[%clk 0:00:18]} 64. Ke7 {[%clk 0:00:33]}  b5 {[%clk 0:00:18]} 65. Ke6 {[%clk 0:00:33]}  b4 {[%clk 0:00:19]} 66. Kf7 {[%clk 0:00:34]}  b3 {[%clk 0:00:19]} 67. Ke7 {[%clk 0:00:33]}  b2 {[%clk 0:00:19]} 68. Ke6 {[%clk 0:00:34]}  b1=Q {[%clk 0:00:19]} 69. Ke7 {[%clk 0:00:34]}  Qe4+ {[%clk 0:00:17]} 70. Kd6 {[%clk 0:00:34]}  Qbd1+ {[%clk 0:00:17]} 71. Kc7 {[%clk 0:00:34]}  Qc5+ {[%clk 0:00:16]} 72. Kb8 {[%clk 0:00:34]}  Qb3# {[%clk 0:00:16]} 0-1


[Site "https://www.chess.com"]

[Event "Titled Tuesday Blitz June 29 2021"]
[White "iceboy88"]
[Black "QuakeAOS"]
[WhiteElo "2506"]
[BlackElo "2657"]
[Result "0-1"]
[Round "11"]
[TimeControl "180+1"]
[Date "2021.06.29"]
[WhiteClock "0:00:16"]
[BlackClock "0:02:03"]

1. d4 {[%clk 0:03:00]}  Nf6 {[%clk 0:02:57]} 2. c4 {[%clk 0:03:00]}  g6 {[%clk 0:02:52]} 3. Nc3 {[%clk 0:02:57]}  Bg7 {[%clk 0:02:52]} 4. e4 {[%clk 0:02:56]}  d6 {[%clk 0:02:53]} 5. h3 {[%clk 0:02:57]}  O-O {[%clk 0:02:52]} 6. Be3 {[%clk 0:02:57]}  Na6 {[%clk 0:02:53]} 7. Nf3 {[%clk 0:02:42]}  e5 {[%clk 0:02:52]} 8. d5 {[%clk 0:02:41]}  Nc5 {[%clk 0:02:52]} 9. Nd2 {[%clk 0:02:36]}  a5 {[%clk 0:02:52]} 10. b3 {[%clk 0:02:33]}  c6 {[%clk 0:02:52]} 11. a3 {[%clk 0:02:32]}  cxd5 {[%clk 0:02:41]} 12. cxd5 {[%clk 0:02:30]}  Bd7 {[%clk 0:02:38]} 13. b4 {[%clk 0:02:29]}  axb4 {[%clk 0:02:28]} 14. axb4 {[%clk 0:02:29]}  Na6 {[%clk 0:02:28]} 15. Qb1 {[%clk 0:02:16]}  Nh5 {[%clk 0:02:24]} 16. Bd3 {[%clk 0:02:03]}  f5 {[%clk 0:02:24]} 17. exf5 {[%clk 0:02:00]}  gxf5 {[%clk 0:02:24]} 18. g4 {[%clk 0:02:00]}  e4 {[%clk 0:02:23]} 19. Bxa6 {[%clk 0:01:55]}  Bxc3 {[%clk 0:02:20]} 20. gxh5 {[%clk 0:01:43]}  f4 {[%clk 0:02:14]} 21. Ra3 {[%clk 0:01:01]}  fxe3 {[%clk 0:02:07]} 22. Rxc3 {[%clk 0:01:00]}  exd2+ {[%clk 0:02:07]} 23. Kd1 {[%clk 0:00:56]}  Rxa6 {[%clk 0:02:07]} 24. Rg3+ {[%clk 0:00:46]}  Kh8 {[%clk 0:02:07]} 25. Rhg1 {[%clk 0:00:29]}  Qf6 {[%clk 0:02:06]} 26. Kxd2 {[%clk 0:00:17]}  Qxf2+ {[%clk 0:02:05]} 27. Kd1 {[%clk 0:00:16]}  Ba4+ {[%clk 0:02:04]} 28. Kc1 {[%clk 0:00:16]}  Rc8+ {[%clk 0:02:03]} 0-1


[Site "https://www.chess.com"]

[Event "Titled Tuesday Blitz June 29 2021"]
[White "karinachess1"]
[Black "OlegKrivonosov"]
[WhiteElo "2546"]
[BlackElo "2719"]
[Result "1/2-1/2"]
[Round "11"]
[TimeControl "180+1"]
[Date "2021.06.29"]
[WhiteClock "0:00:34"]
[BlackClock "0:00:59"]

1. c4 {[%clk 0:03:00]}  e6 {[%clk 0:02:59]} 2. Nf3 {[%clk 0:02:58]}  d5 {[%clk 0:02:59]} 3. e3 {[%clk 0:02:55]}  Nf6 {[%clk 0:02:58]} 4. Nc3 {[%clk 0:02:53]}  c5 {[%clk 0:02:57]} 5. cxd5 {[%clk 0:02:52]}  exd5 {[%clk 0:02:57]} 6. d4 {[%clk 0:02:52]}  Nc6 {[%clk 0:02:57]} 7. Be2 {[%clk 0:02:51]}  cxd4 {[%clk 0:02:53]} 8. Nxd4 {[%clk 0:02:49]}  Bd6 {[%clk 0:02:52]} 9. O-O {[%clk 0:02:47]}  O-O {[%clk 0:02:52]} 10. b3 {[%clk 0:02:39]}  Nxd4 {[%clk 0:02:44]} 11. Qxd4 {[%clk 0:02:40]}  Re8 {[%clk 0:02:43]} 12. Bb2 {[%clk 0:02:30]}  Be5 {[%clk 0:02:43]} 13. Qh4 {[%clk 0:02:08]}  Ne4 {[%clk 0:02:28]} 14. Qxd8 {[%clk 0:02:06]}  Rxd8 {[%clk 0:02:29]} 15. Nxe4 {[%clk 0:01:53]}  Bxb2 {[%clk 0:02:28]} 16. Rad1 {[%clk 0:01:54]}  Be6 {[%clk 0:02:08]} 17. Nc5 {[%clk 0:01:52]}  b6 {[%clk 0:02:07]} 18. Nxe6 {[%clk 0:01:41]}  fxe6 {[%clk 0:02:08]} 19. Rd2 {[%clk 0:01:26]}  Ba3 {[%clk 0:02:06]} 20. Ba6 {[%clk 0:01:23]}  Rd6 {[%clk 0:01:59]} 21. Rc2 {[%clk 0:01:17]}  Rad8 {[%clk 0:01:57]} 22. Rd1 {[%clk 0:01:15]}  Kf7 {[%clk 0:01:54]} 23. Bb5 {[%clk 0:01:08]}  d4 {[%clk 0:01:46]} 24. Rc7+ {[%clk 0:00:46]}  Kf6 {[%clk 0:01:40]} 25. exd4 {[%clk 0:00:42]}  Rxd4 {[%clk 0:01:38]} 26. Rxd4 {[%clk 0:00:36]}  Rxd4 {[%clk 0:01:39]} 27. Rd7 {[%clk 0:00:30]}  Rxd7 {[%clk 0:01:29]} 28. Bxd7 {[%clk 0:00:31]}  Ke5 {[%clk 0:01:28]} 29. Kf1 {[%clk 0:00:30]}  Kd6 {[%clk 0:01:28]} 30. Bc8 {[%clk 0:00:28]}  Kd5 {[%clk 0:01:27]} 31. Ke2 {[%clk 0:00:28]}  e5 {[%clk 0:01:25]} 32. Kd3 {[%clk 0:00:17]}  e4+ {[%clk 0:01:24]} 33. Ke2 {[%clk 0:00:17]}  Kd4 {[%clk 0:01:22]} 34. Bb7 {[%clk 0:00:16]}  h6 {[%clk 0:01:21]} 35. h3 {[%clk 0:00:14]}  Bd6 {[%clk 0:01:20]} 36. Bc6 {[%clk 0:00:13]}  Bf4 {[%clk 0:01:19]} 37. Bb7 {[%clk 0:00:13]}  Bg5 {[%clk 0:01:18]} 38. Bc6 {[%clk 0:00:13]}  a5 {[%clk 0:01:16]} 39. Bb7 {[%clk 0:00:10]}  Bf6 {[%clk 0:01:13]} 40. Bc6 {[%clk 0:00:10]}  Be7 {[%clk 0:01:12]} 41. a4 {[%clk 0:00:09]}  Bb4 {[%clk 0:01:12]} 42. Bb7 {[%clk 0:00:09]}  Bc3 {[%clk 0:01:10]} 43. Bc6 {[%clk 0:00:10]}  Bb2 {[%clk 0:01:09]} 44. Bb7 {[%clk 0:00:10]}  Bc1 {[%clk 0:01:09]} 45. Bc6 {[%clk 0:00:10]}  Bg5 {[%clk 0:01:07]} 46. Bb7 {[%clk 0:00:11]}  e3 {[%clk 0:01:07]} 47. fxe3+ {[%clk 0:00:10]}  Bxe3 {[%clk 0:01:07]} 48. Bc8 {[%clk 0:00:11]}  Bg5 {[%clk 0:01:06]} 49. Be6 {[%clk 0:00:11]}  Bf6 {[%clk 0:01:05]} 50. Bc4 {[%clk 0:00:10]}  Ke4 {[%clk 0:01:05]} 51. Bf7 {[%clk 0:00:10]}  Kf4 {[%clk 0:01:05]} 52. Bd5 {[%clk 0:00:10]}  Bd4 {[%clk 0:01:04]} 53. Be6 {[%clk 0:00:09]}  Bc5 {[%clk 0:01:05]} 54. Bd5 {[%clk 0:00:10]}  Kf5 {[%clk 0:01:04]} 55. Kf3 {[%clk 0:00:10]}  Ke5 {[%clk 0:01:04]} 56. Bg8 {[%clk 0:00:10]}  Kd4 {[%clk 0:01:04]} 57. Bc4 {[%clk 0:00:10]}  Kc3 {[%clk 0:01:03]} 58. Bg8 {[%clk 0:00:10]}  Kd2 {[%clk 0:01:03]} 59. Bf7 {[%clk 0:00:11]}  Bd4 {[%clk 0:01:02]} 60. Bg8 {[%clk 0:00:11]}  Kc3 {[%clk 0:01:02]} 61. Bf7 {[%clk 0:00:11]}  Bf6 {[%clk 0:01:01]} 62. Bg8 {[%clk 0:00:12]}  Kd4 {[%clk 0:01:01]} 63. Bf7 {[%clk 0:00:12]}  Ke5 {[%clk 0:01:02]} 64. Bg8 {[%clk 0:00:13]}  Be7 {[%clk 0:01:02]} 65. Bf7 {[%clk 0:00:13]}  Bc5 {[%clk 0:00:59]} 66. Bg8 {[%clk 0:00:14]}  Kf6 {[%clk 0:01:00]} 67. Bc4 {[%clk 0:00:14]}  Kf5 {[%clk 0:00:59]} 68. Bd5 {[%clk 0:00:14]}  Kg5 {[%clk 0:00:59]} 69. Bg8 {[%clk 0:00:14]}  Kf6 {[%clk 0:00:59]} 70. Bc4 {[%clk 0:00:14]}  g6 {[%clk 0:00:59]} 71. Bg8 {[%clk 0:00:14]}  Bd6 {[%clk 0:00:59]} 72. Bc4 {[%clk 0:00:14]}  Kg7 {[%clk 0:00:59]} 73. Bd5 {[%clk 0:00:14]}  Kf6 {[%clk 0:00:58]} 74. Bc4 {[%clk 0:00:15]}  Bc5 {[%clk 0:00:59]} 75. Bd5 {[%clk 0:00:15]}  Kf5 {[%clk 0:00:59]} 76. Be4+ {[%clk 0:00:14]}  Kg5 {[%clk 0:00:57]} 77. Bd3 {[%clk 0:00:13]}  h5 {[%clk 0:00:57]} 78. Be4 {[%clk 0:00:13]}  Kf6 {[%clk 0:00:57]} 79. Bd3 {[%clk 0:00:13]}  Bd6 {[%clk 0:00:57]} 80. g4 {[%clk 0:00:12]}  h4 {[%clk 0:00:55]} 81. Bc4 {[%clk 0:00:12]}  g5 {[%clk 0:00:54]} 82. Bd5 {[%clk 0:00:12]}  Bf4 {[%clk 0:00:54]} 83. Bc4 {[%clk 0:00:12]}  Ke5 {[%clk 0:00:55]} 84. Bg8 {[%clk 0:00:12]}  Kd4 {[%clk 0:00:55]} 85. Bf7 {[%clk 0:00:13]}  Kd3 {[%clk 0:00:55]} 86. Be6 {[%clk 0:00:12]}  Kd2 {[%clk 0:00:55]} 87. Bd5 {[%clk 0:00:12]}  Ke1 {[%clk 0:00:55]} 88. Kg2 {[%clk 0:00:12]}  Ke2 {[%clk 0:00:55]} 89. Be6 {[%clk 0:00:12]}  Bd2 {[%clk 0:00:54]} 90. Bf7 {[%clk 0:00:12]}  Ke3 {[%clk 0:00:54]} 91. Bg8 {[%clk 0:00:13]}  Kd4 {[%clk 0:00:54]} 92. Bf7 {[%clk 0:00:13]}  Bf4 {[%clk 0:00:54]} 93. Bg8 {[%clk 0:00:14]}  Kc5 {[%clk 0:00:55]} 94. Bf7 {[%clk 0:00:14]}  b5 {[%clk 0:00:54]} 95. axb5 {[%clk 0:00:15]}  Kxb5 {[%clk 0:00:53]} 96. Bg8 {[%clk 0:00:15]}  Kc5 {[%clk 0:00:53]} 97. Bf7 {[%clk 0:00:15]}  Kb4 {[%clk 0:00:53]} 98. Bg8 {[%clk 0:00:16]}  Kc3 {[%clk 0:00:53]} 99. Bf7 {[%clk 0:00:16]}  Kd4 {[%clk 0:00:54]} 100. Bg8 {[%clk 0:00:16]}  Ke5 {[%clk 0:00:54]} 101. Bf7 {[%clk 0:00:17]}  Kf6 {[%clk 0:00:54]} 102. Bc4 {[%clk 0:00:17]}  Bc1 {[%clk 0:00:54]} 103. Bd5 {[%clk 0:00:17]}  Ke5 {[%clk 0:00:54]} 104. Bc4 {[%clk 0:00:17]}  Kd4 {[%clk 0:00:54]} 105. Bg8 {[%clk 0:00:17]}  Kc3 {[%clk 0:00:54]} 106. Bf7 {[%clk 0:00:18]}  Bf4 {[%clk 0:00:52]} 107. Bg8 {[%clk 0:00:18]}  Kd4 {[%clk 0:00:52]} 108. Bf7 {[%clk 0:00:18]}  Ke5 {[%clk 0:00:52]} 109. Bg8 {[%clk 0:00:19]}  Kf6 {[%clk 0:00:53]} 110. Bc4 {[%clk 0:00:19]}  Ke7 {[%clk 0:00:53]} 111. Bd5 {[%clk 0:00:19]}  Kd6 {[%clk 0:00:53]} 112. Bg8 {[%clk 0:00:20]}  Kc6 {[%clk 0:00:53]} 113. Bf7 {[%clk 0:00:20]}  Kc5 {[%clk 0:00:53]} 114. Bg8 {[%clk 0:00:20]}  Kb4 {[%clk 0:00:53]} 115. Bf7 {[%clk 0:00:21]}  a4 {[%clk 0:00:53]} 116. bxa4 {[%clk 0:00:21]}  Kxa4 {[%clk 0:00:53]} 117. Be6 {[%clk 0:00:21]}  Kb4 {[%clk 0:00:53]} 118. Bf5 {[%clk 0:00:22]}  Kc5 {[%clk 0:00:53]} 119. Be6 {[%clk 0:00:23]}  Kd6 {[%clk 0:00:54]} 120. Bf5 {[%clk 0:00:23]}  Ke5 {[%clk 0:00:54]} 121. Bb1 {[%clk 0:00:24]}  Bc1 {[%clk 0:00:53]} 122. Bf5 {[%clk 0:00:24]}  Kf4 {[%clk 0:00:53]} 123. Bb1 {[%clk 0:00:24]}  Bd2 {[%clk 0:00:53]} 124. Bf5 {[%clk 0:00:24]}  Bc3 {[%clk 0:00:54]} 125. Bc8 {[%clk 0:00:25]}  Bd4 {[%clk 0:00:54]} 126. Bd7 {[%clk 0:00:25]}  Bc5 {[%clk 0:00:55]} 127. Bc8 {[%clk 0:00:26]}  Bd4 {[%clk 0:00:55]} 128. Bd7 {[%clk 0:00:26]}  Ke5 {[%clk 0:00:55]} 129. Bc8 {[%clk 0:00:27]}  Be3 {[%clk 0:00:55]} 130. Bf5 {[%clk 0:00:27]}  Bf4 {[%clk 0:00:56]} 131. Bb1 {[%clk 0:00:27]}  Kd6 {[%clk 0:00:56]} 132. Bf5 {[%clk 0:00:27]}  Kc7 {[%clk 0:00:57]} 133. Bb1 {[%clk 0:00:27]}  Kb6 {[%clk 0:00:58]} 134. Bc2 {[%clk 0:00:28]}  Kc5 {[%clk 0:00:58]} 135. Bf5 {[%clk 0:00:29]}  Kb4 {[%clk 0:00:58]} 136. Bg6 {[%clk 0:00:29]}  Kc3 {[%clk 0:00:58]} 137. Bh5 {[%clk 0:00:29]}  Kd2 {[%clk 0:00:58]} 138. Bg6 {[%clk 0:00:30]}  Ke3 {[%clk 0:00:58]} 139. Bh5 {[%clk 0:00:31]}  Kd4 {[%clk 0:00:58]} 140. Bg6 {[%clk 0:00:31]}  Ke5 {[%clk 0:00:58]} 141. Bf5 {[%clk 0:00:32]}  Kf6 {[%clk 0:00:58]} 142. Bc2 {[%clk 0:00:32]}  Kg7 {[%clk 0:00:58]} 143. Bb1 {[%clk 0:00:32]}  Kf6 {[%clk 0:00:58]} 144. Bc2 {[%clk 0:00:33]}  Ke5 {[%clk 0:00:59]} 145. Bb1 {[%clk 0:00:34]} 1/2-1/2


[Site "https://www.chess.com"]

[Event "Titled Tuesday Blitz June 29 2021"]
[White "nocnypako"]
[Black "KarateBaby"]
[WhiteElo "2535"]
[BlackElo "2401"]
[Result "1-0"]
[Round "11"]
[TimeControl "180+1"]
[Date "2021.06.29"]
[WhiteClock "0:00:01"]
[BlackClock "0:00:05"]

1. d4 {[%clk 0:03:00]}  Nf6 {[%clk 0:02:59]} 2. c4 {[%clk 0:03:01]}  g6 {[%clk 0:03:00]} 3. Nc3 {[%clk 0:03:01]}  Bg7 {[%clk 0:03:01]} 4. e4 {[%clk 0:03:02]}  d6 {[%clk 0:03:02]} 5. Nf3 {[%clk 0:03:02]}  O-O {[%clk 0:03:03]} 6. Be2 {[%clk 0:03:03]}  Nbd7 {[%clk 0:03:03]} 7. O-O {[%clk 0:03:03]}  e5 {[%clk 0:03:04]} 8. Re1 {[%clk 0:03:00]}  Re8 {[%clk 0:03:03]} 9. Bf1 {[%clk 0:02:59]}  a6 {[%clk 0:03:04]} 10. Rb1 {[%clk 0:02:56]}  exd4 {[%clk 0:03:04]} 11. Nxd4 {[%clk 0:02:56]}  Nc5 {[%clk 0:03:04]} 12. f3 {[%clk 0:02:56]}  Nh5 {[%clk 0:03:04]} 13. Be3 {[%clk 0:02:55]}  Be5 {[%clk 0:03:02]} 14. Qd2 {[%clk 0:02:43]}  Qh4 {[%clk 0:03:00]} 15. g3 {[%clk 0:02:40]}  Qd8 {[%clk 0:02:40]} 16. Bg2 {[%clk 0:02:26]}  a5 {[%clk 0:02:26]} 17. Rbd1 {[%clk 0:02:25]}  Bg7 {[%clk 0:02:24]} 18. Nc2 {[%clk 0:02:22]}  Ne6 {[%clk 0:02:15]} 19. b3 {[%clk 0:02:12]}  Nf6 {[%clk 0:01:58]} 20. f4 {[%clk 0:02:04]}  Qe7 {[%clk 0:01:55]} 21. Nd5 {[%clk 0:02:02]}  Qd8 {[%clk 0:01:52]} 22. f5 {[%clk 0:01:54]}  Nc5 {[%clk 0:01:48]} 23. Bg5 {[%clk 0:01:19]}  h6 {[%clk 0:01:38]} 24. Bxf6 {[%clk 0:01:01]}  Bxf6 {[%clk 0:01:36]} 25. fxg6 {[%clk 0:00:59]}  fxg6 {[%clk 0:01:31]} 26. Qxh6 {[%clk 0:00:58]}  Bg7 {[%clk 0:01:06]} 27. Qxg6 {[%clk 0:00:57]}  Re6 {[%clk 0:01:06]} 28. Qh5 {[%clk 0:00:58]}  Rh6 {[%clk 0:01:03]} 29. Qe2 {[%clk 0:00:57]}  Bh3 {[%clk 0:01:02]} 30. Nce3 {[%clk 0:00:57]}  Bxg2 {[%clk 0:01:01]} 31. Qxg2 {[%clk 0:00:56]}  Qg5 {[%clk 0:00:59]} 32. Nf5 {[%clk 0:00:55]}  Rh7 {[%clk 0:00:55]} 33. Nxc7 {[%clk 0:00:46]}  Rf8 {[%clk 0:00:52]} 34. h4 {[%clk 0:00:44]}  Qg4 {[%clk 0:00:50]} 35. Nd5 {[%clk 0:00:40]}  Be5 {[%clk 0:00:49]} 36. Nde3 {[%clk 0:00:30]}  Qg6 {[%clk 0:00:49]} 37. g4 {[%clk 0:00:28]}  Kh8 {[%clk 0:00:43]} 38. g5 {[%clk 0:00:28]}  Bf4 {[%clk 0:00:41]} 39. Ng4 {[%clk 0:00:25]}  Nxe4 {[%clk 0:00:31]} 40. Qxe4 {[%clk 0:00:22]}  Qxf5 {[%clk 0:00:20]} 41. Qxf5 {[%clk 0:00:22]}  Rxf5 {[%clk 0:00:21]} 42. Re8+ {[%clk 0:00:18]}  Kg7 {[%clk 0:00:20]} 43. Nh6 {[%clk 0:00:14]}  Kg6 {[%clk 0:00:16]} 44. Nxf5 {[%clk 0:00:12]}  Kxf5 {[%clk 0:00:15]} 45. Rf1 {[%clk 0:00:12]}  Rxh4 {[%clk 0:00:12]} 46. Rf8+ {[%clk 0:00:05]}  Kxg5 {[%clk 0:00:12]} 47. Kg2 {[%clk 0:00:03]}  Rg4+ {[%clk 0:00:09]} 48. Kf3 {[%clk 0:00:03]}  Rg3+ {[%clk 0:00:06]} 49. Ke4 {[%clk 0:00:03]}  Re3+ {[%clk 0:00:06]} 50. Kd5 {[%clk 0:00:02]}  Be5 {[%clk 0:00:06]} 51. Rg8+ {[%clk 0:00:02]}  Kh4 {[%clk 0:00:05]} 52. Rh1+ {[%clk 0:00:02]}  Rh3 {[%clk 0:00:05]} 53. Rxh3+ {[%clk 0:00:02]}  Kxh3 {[%clk 0:00:06]} 54. Rb8 {[%clk 0:00:02]}  b6 {[%clk 0:00:05]} 55. Rxb6 {[%clk 0:00:01]} 1-0


[Site "https://www.chess.com"]